[Event "CCT Chessable Masters Playoffs 2025"]
[Site "Online"]
[Date "2025.02.18"]
[Round "2"]
[White "Firouzja, Alireza"]
[Black "Caruana, Fabiano"]
[Result "0-1"]
[Annotator "TA"]
[ECO "B90"]
[WhiteElo "2760"]
[BlackElo "2803"]
[PlyCount "88"]
[EventDate "2025.02.13"]
[EventType "k.o."]
[EventCountry "NET"]
[SourceTitle "playchess.com"]
[Source "ChessBase"]
[SourceQuality "1"]
[TimeControl "600"]

{[%evp 12,88,28,8,18,8,20,0,0,0,39,28,33,20,32,23,20,-6,0,-22,-48,-39,-37,-31,21,-3,-4,0,37,28,50,-15,50,22,69,30,43,36,76,45,121,107,145,33,25,59,67,66,63,64,87,35,184,178,127,0,0,0,0,-7,0,0,0,0,0,0,0,0,0,-27,-27,-37,0,-286,-29,-29997,-29998,-29998,-29999]} 1. e4 {[%emt 0:00:00]} c5 {[%emt 0:00:01]} 2. Nf3 {[%emt 0:00:01]} d6 {[%emt 0:00:00]} 3. d4 {[%emt 0:00:04]} cxd4 {[%emt 0:00:01]} 4. Nxd4 {[%emt 0:00:00]} Nf6 {[%emt 0:00:01]} 5. Nc3 {[%emt 0:00:00]} a6 {[%emt 0:00:00]} 6. Be3 {[%emt 0:00:01]} (6. h3 e6 7. g4 Be7 8. g5 Nfd7 9. h4 b5 10. a3 Bb7 11. Be3 Nc6 12. f4 h6 13. Rh3 Nc5 14. Qe2 Qc7 15. O-O-O O-O-O 16. b4 Nd7 17. g6 Nxd4 18. Bxd4 fxg6 {1-0 Firouzja,A (2744)-Caruana,F (2796) Chess.com SpeedChess blitz 2024 (2.15)}) 6... e5 {[%emt 0:00:04]} 7. Nf3 {[%emt 0:00:01]} Nc6 {[%emt 0:00:03] B90: Sicilian Najdorf: Unusual White 6th moves, 6 Be3 Ng4 and 6 Be3 e5.} 8. Bc4 {[%emt 0:00:12]} Be6 {[%emt 0:00:01]} 9. Nd5 {[%emt 0:00:21]} Rc8 {[%emt 0:00:19] The position is equal.} 10. Nxf6+ {[%emt 0:00:02]} gxf6 {[%emt 0:00:11]} 11. Bxe6 $146 {[%emt 0:01:09]} (11. Bb3 Ne7 12. O-O Bxb3 13. axb3 d5 14. exd5 Qxd5 15. Qe2 Nf5 16. Rfd1 Qc6 17. c4 {1-0 Nakamura,H (2760)-Firouzja,A (2793) Candidates Tournament 2022 (10)}) 11... fxe6 {[%emt 0:00:00]} 12. c4 {[%emt 0:00:37]} f5 {[%emt 0:00:51]} 13. exf5 {[%emt 0:00:17]} exf5 {[%emt 0:00:00]} 14. Qd5 {[%emt 0:00:29]} Qd7 {[%emt 0:00:03] Prevents Qe6+} 15. b3 {[%emt 0:00:59]} Ne7 {[%emt 0:00:30]} 16. Qd1 {[%emt 0:00:12]} f4 {[%emt 0:00:02]} 17. Bd2 {[%emt 0:00:13]} Bg7 {[%emt 0:00:57]} (17... Rg8 $15) 18. Rc1 {[%emt 0:00:45]} Bf6 {[%emt 0:00:04]} 19. Qe2 {[%emt 0:00:05]} O-O {[%emt 0:00:30]} 20. O-O {[%emt 0:00:11]} Qf5 {[%emt 0:00:29]} 21. Bc3 {[%emt 0:00:12]} (21. Rfe1 $14) 21... Rfd8 {[%emt 0:00:16]} (21... e4 $11 22. Nd2 Bxc3 23. Rxc3 d5) 22. Nd2 {[%emt 0:00:04]} Ng6 {[%emt 0:00:21]} (22... d5 $11) 23. Ne4 {[%emt 0:00:06]} Be7 {[%emt 0:00:02][%cal Ob7b5]} 24. f3 {[%emt 0:00:04]} Nh4 {[%emt 0:00:04]} 25. Rcd1 {[%emt 0:00:05]} b5 {[%emt 0:00:25]} 26. Be1 $36 {[%emt 0:00:04][%mdl 2048] White is in control.} (26. cxb5 d5 27. Ba5 (27. bxa6 $2 dxe4 28. Rxd8+ Bxd8 $19) 27... dxe4 28. Bxd8 exf3 (28... Bxd8 29. fxe4 Qg5 30. bxa6 $14) 29. gxf3 Bxd8 $17) 26... Ng6 {[%emt 0:00:30]} 27. Bf2 {[%emt 0:00:01]} (27. cxb5 $6 d5 $16) (27. Ba5 $16 Rd7 28. Rd5 (28. cxb5 d5 $16)) 27... bxc4 $14 {[%emt 0:00:05]} 28. bxc4 {[%emt 0:00:00]} Qe6 {[%emt 0:00:01]} 29. Rd5 {[%emt 0:00:05]} Rc6 {[%emt 0:00:06]} 30. Rfd1 {[%emt 0:00:01] c5 would now be deadly. White has strong rooks and is better} Rdc8 {[%emt 0:00:01][%cal Og6h8] [#]} 31. Qd3 {[%emt 0:00:26]} (31. h4 $1 $16) 31... Rxc4 {[%emt 0:00:07]} (31... Nh8 $14) 32. Nxd6 $18 {[%emt 0:00:01]} Rc3 {[%emt 0:00:01]} (32... e4 $18 33. Nxe4 (33. Qxc4 $2 Rxc4 34. Nxc4 e3 $17) 33... Rc2) 33. Qf5 {[%emt 0:00:28]} (33. Qxa6 $6 R3c6 34. Qa3 Rd8 $14) ({White should try} 33. Nxc8 $16 Rxd3 34. Nxe7+ Nxe7 35. R5xd3) 33... Qxf5 $11 {[%emt 0:00:04]} 34. Nxf5 {[%emt 0:00:00]} Bf8 {[%emt 0:00:02]} 35. Rd7 {[%emt 0:00:06]} Rc2 {[%emt 0:00:19]} 36. h4 {[%emt 0:00:06]} h5 {[%emt 0:00:05][%cal Oc2c1]} 37. Nd6 {[%emt 0:00:34]} R8c6 {[%emt 0:00:17]} 38. Ne4 {[%emt 0:00:12]} Be7 {[%emt 0:00:10]} 39. Ra7 {[%emt 0:00:04]} Rxa2 {[%emt 0:00:09]} 40. Rdd7 {[%emt 0:00:16]} Rc1+ {[%emt 0:00:15]} 41. Kh2 {[%emt 0:00:02]} Raa1 $1 {[%emt 0:00:01][%csl Ga1][%cal Rc1h1]} 42. g4 $2 {[%emt 0:00:07][%mdl 8192] [#]} (42. Rxe7 $2 Rh1#) (42. g3 $11 {and White is okay.} fxg3+ 43. Nxg3 (43. Bxg3 Ra2+ 44. Bf2 Kf8 $15)) 42... fxg3+ $2 {[%emt 0:00:01]} (42... Bxh4 $2 {perishes.} 43. Ra8+ (43. gxh5 Nf8 $18) 43... Nf8 44. Bxh4 Ra2+ 45. Bf2 Rxf2+ 46. Nxf2 $18) (42... Rh1+ $1 $19 43. Kg2 Nxh4+ 44. Bxh4 Rag1+ 45. Kf2 Bxh4+ 46. Ke2 Rg2+ (46... hxg4 47. Ra8+) 47. Kd3 Rd1+ (47... hxg4 48. Ra8+) 48. Kc4 Rxd7 49. Rxd7 hxg4 50. fxg4 f3 (50... Rxg4 51. Rd5 $19)) 43. Kxg3 $2 {[%emt 0:00:10][%mdl 8192]} (43. Nxg3 $11 Rc2 44. Ne4) 43... Bxh4+ {[%emt 0:00:05]} 44. Kg2 {[%emt 0:00:16]} Nf4+ {[%emt 0:00:03] Quite a comeback for Black.   Weighted Error Value: White=0.49/Black=0.29 (precise)   Loses game:     	White=2     	---        Missed win:     	---       	Black=1      Mistake:       	White=4     	Black=6      Inaccurate:     	White=5     	Black=4      OK:         	White=12    	Black=14     Best:        	White=3     	Black=2      Strong:       	---       	Black=1} 0-1

[Event "CCT Chessable Masters Playoffs 2025"]
[Site "Online"]
[Date "2025.02.18"]
[Round "2"]
[White "Firouzja, Alireza"]
[Black "Caruana, Fabiano"]
[Result "1-0"]
[Annotator "ChessBase"]
[ECO "B31"]
[WhiteElo "2760"]
[BlackElo "2803"]
[PlyCount "105"]
[EventDate "2025.02.13"]
[EventType "k.o."]
[EventCountry "NET"]
[SourceTitle "playchess.com"]
[Source "ChessBase"]
[SourceQuality "1"]
[TimeControl "600"]

1. e4 {[%emt 0:00:00]} c5 {[%emt 0:00:01]} 2. Nf3 {[%emt 0:00:01]} Nc6 {[%emt 0:00:00]} 3. Bb5 {[%emt 0:00:01]} g6 {[%emt 0:00:01]} 4. O-O {[%emt 0:00:03]} Bg7 {[%emt 0:00:01]} 5. c3 {[%emt 0:00:06]} e5 {[%emt 0:00:07]} 6. d4 {[%emt 0:00:07]} cxd4 {[%emt 0:00:02]} 7. cxd4 {[%emt 0:00:00]} exd4 {[%emt 0:00:06]} 8. Bf4 {[%emt 0:00:04]} a6 {[%emt 0:00:11]} 9. Qa4 {[%emt 0:00:14]} Nge7 {[%emt 0:00:07]} 10. Bd6 {[%emt 0:00:07]} b6 {[%emt 0:00:24]} 11. Qa3 {[%emt 0:00:25]} Bb7 {[%emt 0:00:13]} 12. Bc4 {[%emt 0:00:05]} Nc8 {[%emt 0:00:09]} 13. Bd5 {[%emt 0:02:50]} Nxd6 {[%emt 0:00:08]} 14. Qxd6 {[%emt 0:00:00]} Rc8 {[%emt 0:01:08]} 15. Nbd2 {[%emt 0:00:11]} Qc7 {[%emt 0:01:39]} 16. Qa3 {[%emt 0:01:36]} b5 {[%emt 0:01:11]} 17. Ng5 {[%emt 0:00:19]} Rf8 {[%emt 0:00:02]} 18. Rac1 {[%emt 0:00:47]} Qe5 {[%emt 0:01:26]} 19. f4 {[%emt 0:00:10]} Qe7 {[%emt 0:00:01]} 20. Qh3 {[%emt 0:00:01]} h6 {[%emt 0:00:04]} 21. Ngf3 {[%emt 0:00:01]} Kd8 {[%emt 0:00:12]} 22. e5 {[%emt 0:00:04]} f6 {[%emt 0:00:12]} 23. exf6 {[%emt 0:00:24]} Qxf6 {[%emt 0:00:07]} 24. Ne4 {[%emt 0:00:32]} Qf5 {[%emt 0:00:02]} 25. Qh4+ {[%emt 0:00:01]} Kc7 {[%emt 0:00:11]} 26. Bxc6 {[%emt 0:00:19]} Bxc6 {[%emt 0:00:02]} 27. Qe7 {[%emt 0:00:06]} Qe6 {[%emt 0:00:31]} 28. Qxg7 {[%emt 0:00:13]} Qxe4 {[%emt 0:00:02]} 29. Qxd4 {[%emt 0:00:04]} Qxd4+ {[%emt 0:00:02]} 30. Nxd4 {[%emt 0:00:00]} Kb6 {[%emt 0:00:02]} 31. g3 {[%emt 0:00:03]} Bd5 {[%emt 0:00:06]} 32. b3 {[%emt 0:00:03]} a5 {[%emt 0:00:02]} 33. Rcd1 {[%emt 0:00:01]} Bb7 {[%emt 0:00:03]} 34. Rfe1 {[%emt 0:00:02]} Rf6 {[%emt 0:00:02]} 35. Rd2 {[%emt 0:00:09]} Rd6 {[%emt 0:00:02]} 36. Kf2 {[%emt 0:00:01]} Rc5 {[%emt 0:00:04]} 37. Red1 {[%emt 0:00:02]} g5 {[%emt 0:00:02]} 38. Ne2 {[%emt 0:00:02]} Rxd2 {[%emt 0:00:03]} 39. Rxd2 {[%emt 0:00:01]} Bc6 {[%emt 0:00:02]} 40. Nd4 {[%emt 0:00:03]} gxf4 {[%emt 0:00:01]} 41. gxf4 {[%emt 0:00:00]} a4 {[%emt 0:00:03]} 42. Kg3 {[%emt 0:00:06]} a3 {[%emt 0:00:04]} 43. f5 {[%emt 0:00:02]} Bd5 {[%emt 0:00:08]} 44. f6 {[%emt 0:00:02]} Bf7 {[%emt 0:00:01]} 45. Kf4 {[%emt 0:00:02]} Rd5 {[%emt 0:00:11]} 46. Ke4 {[%emt 0:00:01]} Rd6 {[%emt 0:00:05]} 47. Rf2 {[%emt 0:00:03]} b4 {[%emt 0:00:05]} 48. Ke5 {[%emt 0:00:02]} Rd5+ {[%emt 0:00:01]} 49. Ke4 {[%emt 0:00:01]} Rd6 {[%emt 0:00:01]} 50. Nc2 {[%emt 0:00:01]} Bg6+ {[%emt 0:00:04]} 51. Ke3 {[%emt 0:00:01]} Bxc2 {[%emt 0:00:01]} 52. f7 {[%emt 0:00:01]} Bxb3 {[%emt 0:00:08]} 53. f8=Q {[%emt 0:00:03]} 1-0

[Event "CCT Chessable Masters Playoffs 2025"]
[Site "Online"]
[Date "2025.02.18"]
[Round "2"]
[White "Wei, Yi"]
[Black "Erigaisi Arjun"]
[Result "0-1"]
[Annotator "TA"]
[ECO "A13"]
[WhiteElo "2755"]
[BlackElo "2801"]
[PlyCount "228"]
[EventDate "2025.02.13"]
[EventType "k.o."]
[EventCountry "NET"]
[SourceTitle "playchess.com"]
[Source "ChessBase"]
[SourceQuality "1"]
[TimeControl "600"]

{[%evp 9,228,15,7,12,22,14,14,10,12,12,15,11,9,8,15,3,24,0,0,0,0,0,0,0,0,0,2,0,0,0,0,0,0,0,0,0,19,10,68,8,11,0,0,-14,5,3,18,20,36,26,29,17,27,14,12,0,0,-134,0,0,68,0,34,-11,-9,-8,-8,-8,-8,-8,0,0,0,-10,-13,-59,-8,-8,-8,-9,-8,-8,-8,-8,-8,-10,-10,-10,-15,-15,0,0,0,0,0,0,0,0,0,0,0,0,0,0,0,0,0,0,0,0,0,0,0,0,0,0,0,0,0,0,0,0,0,0,0,0,0,0,0,0,0,0,0,0,0,0,0,0,0,0,0,0,0,0,0,0,0,0,0,0,0,0,0,0,0,0,0,0,0,0,0,0,0,0,0,0,0,0,0,0,0,0,0,0,0,0,0,0,0,0,0,0,0,0,0,0,0,0,0,0,0,0,0,0,0,0,0,0,0,0,0,0,0,0,0,0,0,0,0,0,0,0,0,0,0,0,0,0,0,0,0]} 1. Nf3 {[%emt 0:00:00]} Nf6 {[%emt 0:00:02]} 2. c4 {[%emt 0:00:02]} e6 {[%emt 0:00:01]} 3. b3 {[%emt 0:00:02]} d5 {[%emt 0:00:01]} 4. Bb2 {[%emt 0:00:01]} Bd6 {[%emt 0:00:06]} 5. g3 {[%emt 0:00:05]} c5 {[%emt 0:00:03][%cal Bc7c5,Bc5d4][%mdl 32]} 6. cxd5 {[%emt 0:00:04] A13: English Opening: 1...e6.} exd5 {[%emt 0:00:00]} 7. d4 {[%emt 0:00:08]} cxd4 {[%emt 0:00:00]} 8. Bg2 {[%emt 0:00:49]} Bb4+ {[%emt 0:00:10]} 9. Nbd2 {[%emt 0:00:01]} Bc3 {[%emt 0:00:30]} 10. Qc1 {[%emt 0:00:16]} Bxb2 {[%emt 0:01:05]} 11. Qxb2 {[%emt 0:00:02]} d3 {[%emt 0:00:00]} 12. exd3 $146 {[%emt 0:00:33]} (12. e3 Nc6 13. O-O O-O 14. b4 Qb6 15. Rab1 Bf5 16. Rfc1 Rfe8 17. Bf1 Rac8 18. b5 {½-½ Dzagnidze,N (2519)-Ding,Y (2419) CHN-chT China 2018 (13.2)}) 12... Qe7+ {[%emt 0:00:02]} 13. Ne5 {[%emt 0:00:18]} Nfd7 {[%emt 0:00:24]} (13... Ng4 $5 14. O-O Nxe5 $11 (14... Qxe5 $2 15. Rae1 $18)) 14. O-O $1 {[%emt 0:00:07]} Nxe5 {[%emt 0:00:01]} 15. Rae1 {[%emt 0:00:09]} Nbc6 {[%emt 0:00:11]} 16. d4 {[%emt 0:00:41]} O-O {[%emt 0:00:16]} 17. dxe5 {[%emt 0:00:01]} Rd8 {[%emt 0:00:00]} 18. a3 {[%emt 0:00:20]} Bf5 {[%emt 0:00:07]} 19. f4 {[%emt 0:00:05]} a5 {[%emt 0:00:36]} 20. Rc1 {[%emt 0:00:09]} Rac8 {[%emt 0:00:05]} 21. Rfd1 {[%emt 0:00:13]} h6 {[%emt 0:00:09]} 22. h3 {[%emt 0:00:03]} Na7 {[%emt 0:00:22]} 23. g4 {[%emt 0:00:12]} Bh7 {[%emt 0:00:14]} (23... Rxc1 $11 24. Rxc1 Be6) 24. f5 {[%emt 0:00:12][%csl Oh7] White has a king side majority. Black has a bad bishop} (24. b4 $14) 24... Rxc1 $11 {[%emt 0:00:05]} 25. Rxc1 {[%emt 0:00:01]} Nc6 {[%emt 0:00:00]} 26. Re1 {[%emt 0:00:12]} Qc5+ {[%emt 0:00:09]} 27. Kh1 {[%emt 0:00:21]} Qf2 {[%emt 0:00:07]} 28. Qc1 {[%emt 0:00:04]} h5 {[%emt 0:00:06]} 29. Nf3 {[%emt 0:00:09]} (29. gxh5 Qxf5 (29... Bxf5 30. Rf1 $16) 30. h6 gxh6 (30... Nxe5 $2 31. Qc7 $18)) 29... hxg4 {[%emt 0:00:15]} 30. hxg4 {[%emt 0:00:00]} d4 {[%emt 0:00:00]} 31. Qg5 {[%emt 0:00:18] Strongly threatening Qh5.} (31. Qd2 {simplifies} Qxd2 32. Nxd2 g6 33. f6) 31... d3 {[%emt 0:00:36][%cal Of2e1]} 32. f6 {[%emt 0:01:09][%csl Gf6][%cal Rg5g7]} Bg6 {[%emt 0:00:02][%cal Of2e1]} 33. Rd1 {[%emt 0:00:18] [#]} (33. Rf1 $11 {was the only way to keep the balance.} Qe2 34. fxg7 (34. Re1 $2 Qxe1+ 35. Nxe1 d2 $19) 34... Kxg7 (34... d2 $2 35. Qh6 $18) 35. Nh4) 33... d2 {[%emt 0:00:29] Black plays in the center Black is much more active.} 34. fxg7 {[%emt 0:00:27]} (34. Nxd2 $2 Rd4 35. Bf3 Qg3 (35... Rxd2 $2 36. Rxd2 Qxf3+ 37. Kh2 $19) 36. fxg7 Kxg7 (36... Nxe5 37. Qh6 $17) 37. Qf6+ Kh7 $19) 34... Qe2 {[%emt 0:00:06] [#]} (34... Kxg7 $11 35. Qf6+ Kf8) 35. Qh6 $1 {[%emt 0:00:41]} Bh7 {[%emt 0:00:05] [#] Really sharp!} (35... Qxd1+ $5 36. Kh2 Bh7 $11 (36... Qxb3 37. Qh8#)) 36. Ng5 $1 {[%emt 0:00:10][%csl Gg5][%cal Rh6h7]} Qe1+ {[%emt 0:00:25]} 37. Bf1 $1 {[%emt 0:00:09][%csl Gg5][%cal Rh6h7]} Be4+ {[%emt 0:00:02]} (37... Qxd1 38. Qxh7#) 38. Nxe4 {[%emt 0:00:20]} Qxe4+ {[%emt 0:00:00]} (38... Qxd1 39. Qh8#) 39. Bg2 $132 {[%emt 0:00:20][%csl Gg7][%cal Rh6h8][%mdl 2048] White is fighting back} Qe1+ {[%emt 0:00:01]} (39... Qxg4 40. Qh8#) 40. Bf1 {[%emt 0:00:02][%csl Gg7][%cal Rh6h8]} Qe4+ {[%emt 0:00:01]} (40... Qxd1 41. Qh8#) 41. Bg2 {[%emt 0:00:00]} Qh7 {[%emt 0:00:03] Successful Defense Black} ({And not} 41... Qxg4 42. Qh8#) (41... Qe1+ 42. Bf1 Qe4+ (42... Qxd1 43. Qh8#)) 42. Qxh7+ {[%emt 0:00:02]} Kxh7 {[%emt 0:00:00]} 43. Bxc6 {[%emt 0:00:04] The position is equal.} bxc6 {[%emt 0:00:00][%mdl 4096] Endgame KR-KR. White is a pawn up.} 44. Kg2 {[%emt 0:00:03]} (44. Kg1 a4 45. bxa4 c5 46. Kf2) 44... Kxg7 {[%emt 0:00:02][%cal Oa5a4] Threatens to win with ...a4!.} (44... a4 {seems wilder.} 45. bxa4 c5 46. Kf2 c4) 45. Kf3 {[%emt 0:00:00]} Rd3+ {[%emt 0:00:20]} 46. Ke4 {[%emt 0:00:01]} Rxb3 {[%emt 0:00:00]} 47. Rxd2 {[%emt 0:00:00]} Rxa3 {[%emt 0:00:01]} 48. Rd7 {[%emt 0:00:00]} Ra1 {[%emt 0:00:03]} 49. Kf5 {[%emt 0:00:02]} Rf1+ {[%emt 0:00:05]} 50. Kg5 {[%emt 0:00:00]} Re1 {[%emt 0:00:01]} 51. Kf5 {[%emt 0:00:00]} c5 {[%emt 0:00:09]} 52. Ra7 {[%emt 0:00:03]} c4 {[%emt 0:00:03]} 53. Rxa5 {[%emt 0:00:01]} c3 {[%emt 0:00:00] ( -> ...c2)} 54. Rc5 {[%emt 0:00:01]} Rf1+ {[%emt 0:00:01]} 55. Kg5 {[%emt 0:00:01]} Rf3 {[%emt 0:00:03]} 56. Rc8 {[%emt 0:00:00]} Kh7 {[%emt 0:00:03]} 57. Kh5 {[%emt 0:00:03]} Re3 {[%emt 0:00:06]} 58. g5 {[%emt 0:00:01]} Kg7 {[%emt 0:00:03]} 59. Kg4 {[%emt 0:00:01]} Kg6 {[%emt 0:00:04]} (59... Rxe5 60. Rxc3 Re4+ 61. Kf5 $17) 60. Rg8+ {[%emt 0:00:02]} Kh7 {[%emt 0:00:01]} 61. Rc8 {[%emt 0:00:00]} Kg7 {[%emt 0:00:07]} 62. Kf4 {[%emt 0:00:01]} Rh3 {[%emt 0:00:01]} 63. Kg4 {[%emt 0:00:01]} Rd3 {[%emt 0:00:01]} 64. Kf5 {[%emt 0:00:00]} Kh7 {[%emt 0:00:11]} 65. Ke4 {[%emt 0:00:01]} Rh3 {[%emt 0:00:02]} 66. Kf4 {[%emt 0:00:00]} Kg6 {[%emt 0:00:04]} 67. Rg8+ {[%emt 0:00:01]} Kh7 {[%emt 0:00:02]} 68. Rc8 {[%emt 0:00:00]} Kg7 {[%emt 0:00:03]} 69. Kf5 {[%emt 0:00:01]} Rg3 {[%emt 0:00:08]} 70. Kf4 {[%emt 0:00:00]} Rd3 {[%emt 0:00:00]} 71. Ke4 {[%emt 0:00:01]} Rh3 {[%emt 0:00:00]} 72. Kf5 {[%emt 0:00:01]} Rh1 {[%emt 0:00:04]} 73. Rxc3 {[%emt 0:00:01]} Rf1+ {[%emt 0:00:00]} 74. Kg4 {[%emt 0:00:01]} Re1 {[%emt 0:00:00]} 75. Rc5 {[%emt 0:00:01]} Re4+ {[%emt 0:00:01]} 76. Kf5 {[%emt 0:00:00]} Re1 {[%emt 0:00:00]} 77. Rc7 {[%emt 0:00:00]} Kf8 {[%emt 0:00:03]} 78. g6 {[%emt 0:00:01]} Rf1+ {[%emt 0:00:01]} 79. Ke4 {[%emt 0:00:01]} fxg6 {[%emt 0:00:03]} 80. e6 {[%emt 0:00:00]} Ke8 {[%emt 0:00:03]} 81. Rf7 {[%emt 0:00:01]} Rxf7 {[%emt 0:00:03]} 82. exf7+ {[%emt 0:00:00]} Kxf7 {[%emt 0:00:00] KP-K. Black is a pawn up.} 83. Kf4 {[%emt 0:00:01][%cal Be4f4,Bf4g4,Bg4g5][%mdl 32]} Kf6 {[%emt 0:00:00]} 84. Kg4 {[%emt 0:00:00]} Kf7 {[%emt 0:00:00]} 85. Kg5 {[%emt 0:00:01]} Kg7 {[%emt 0:00:01]} 86. Kg4 {[%emt 0:00:00]} Kh7 {[%emt 0:00:00]} (86... Kf6 $5) 87. Kg5 {[%emt 0:00:00]} Kg7 {[%emt 0:00:01]} 88. Kg4 {[%emt 0:00:00]} Kf6 {[%emt 0:00:01]} 89. Kf4 {[%emt 0:00:01]} g5+ {[%emt 0:00:00]} 90. Kg4 {[%emt 0:00:00]} Kg6 {[%emt 0:00:00]} 91. Kg3 {[%emt 0:00:00]} Kh7 {[%emt 0:00:01]} (91... Kf5 $5) 92. Kg4 {[%emt 0:00:01]} Kh6 {[%emt 0:00:00]} 93. Kg3 {[%emt 0:00:00]} Kh5 {[%emt 0:00:00]} 94. Kh3 {[%emt 0:00:00]} Kh6 {[%emt 0:00:00]} 95. Kg3 {[%emt 0:00:00]} Kg6 {[%emt 0:00:00]} (95... Kh5 $5) 96. Kg4 {[%emt 0:00:00]} Kf6 {[%emt 0:00:01]} 97. Kg3 {[%emt 0:00:00]} Kf5 {[%emt 0:00:00]} 98. Kf3 {[%emt 0:00:01]} Ke5 {[%emt 0:00:01]} 99. Kg4 {[%emt 0:00:00]} Kf6 {[%emt 0:00:00]} 100. Kg3 {[%emt 0:00:00]} Kf5 {[%emt 0:00:00]} 101. Kf3 {[%emt 0:00:00]} g4+ {[%emt 0:00:00]} 102. Kg3 {[%emt 0:00:01]} Kg5 {[%emt 0:00:00]} 103. Kg2 {[%emt 0:00:00]} Kg6 {[%emt 0:00:00]} (103... Kf4 $5) 104. Kg3 {[%emt 0:00:01]} Kh5 {[%emt 0:00:00]} 105. Kg2 {[%emt 0:00:00]} Kg5 {[%emt 0:00:01]} (105... Kh4 $5) 106. Kg3 {[%emt 0:00:00]} Kf5 {[%emt 0:00:00]} 107. Kg2 {[%emt 0:00:00]} Kf4 {[%emt 0:00:00]} 108. Kf2 {[%emt 0:00:01]} g3+ {[%emt 0:00:01]} 109. Kg2 {[%emt 0:00:00]} Kg4 {[%emt 0:00:00]} 110. Kg1 {[%emt 0:00:00]} Kh5 {[%emt 0:00:01]} (110... Kh3 $5 111. Kh1 $8 Kh4 $11) 111. Kf1 {[%emt 0:00:00]} Kh4 {[%emt 0:00:00][%cal Bh5h4,Bh4g4,Bg4f3,Bf3f4][%mdl 32] ( -> ...Kh3)} 112. Kg2 {[%emt 0:00:00]} Kg4 {[%emt 0:00:00]} 113. Kg1 {[%emt 0:00:00]} Kf3 {[%emt 0:00:01] ( -> ...g2)} (113... Kh3 $5 114. Kh1 $8 Kh4 $11) 114. Kh1 Kf4 {[%emt 0:00:00][%mdl 32768] Weighted Error Value: White=0.11 (very precise) /Black=0.11 (very precise)  Sensor Board Error (Ke4/e5)?  Mistake:       	White=3     	Black=3      Inaccurate:     	White=1     	Black=2      OK:         	White=31    	Black=42     Best:        	White=14    	Black=5      Strong:       	White=2     	---} 0-1